Workbook

Sheet Prodajni lijevak za kampanju
B1: Prodajni lijevak za | F1: U ovoj se ćeliji nalazi ljevkasti grafikon prodaje koji pokazuje faze prodaje i odgovarajuće podatke.
B2: KAMPANJU
B3: FAZA | C3: POTENCIJALNE PRODAJE | D3: NEOSTVARENO | E3: NEKVALIFICIRANO
B4: Prepoznato | C4: 250 | D4: 20 | E4: 9
B5: Uspostavljen kontakt | C5: 150 | D5: 15
B6: Razgovor | C6: 100 | D6: 35
B7: Ostvareno | C7: 15
B9: SAVJET: unesite vrijednosti u gornje ćelije da biste ažurirali ljevkasti grafikon prodaje

Sheet prekriženo (hidden)
A1: *** Ovaj list mora ostati sakriven ***
B7: Prosjek Y: | C7: =AVERAGE(AD13:AE13) -> 183
AD9: =AA12/2+8+50 -> 183
E10: Nizovi i natpisi za postotke | J10: Ukupne vrijednosti i natpisi za faze | O10: Ukupne vrijednosti i natpisi za neostvareno | T10: Ukupna vrijednost i natpis za nekvalificirano | Y10: Rubovi
B11: Faza | C11: x | E11: Pomaci | G11: 0.45 | H11: =3.85%*C7 -> 7.0455 | J11: Pomaci | L11: 0.45 | M11: =-3.85%*C7 -> -7.0455 | O11: Pomaci | Q11: 0.45 | R11: =-19.2%*C7 -> -35.136 | T11: Pomaci | V11: 0.45 | W11: =-25.7%*C7 -> -47.031 | Y11: 1.8 | AD11: =AD12-8 -> 50 | AE11: =AE12+8 -> 316
B12: Okvir | E12: Natpis | F12: Vrijednost | G12: x | H12: y | J12: Natpis | K12: Vrijednost | L12: x | M12: y | O12: Natpis | P12: Vrijednost | Q12: x | R12: y | T12: Natpis | U12: Vrijednost | V12: x | W12: y | Y12: 2 | AA12: =K13 -> 250 | AB12: Prepoznato | AD12: =-AA12/2+$AD$9 -> 58 | AE12: =AA12/2+$AD$9 -> 308 | AG12: =AE12 -> 308 | AH12: 0 | AI12: 0 | AJ12: 0
B13: Prepoznato | C13: 2 | E13: =F13 -> 100% | F13: 100% | G13: =$C13+G$11 -> 2.45 | H13: =$C$7+$H$11 -> 190.0455 | J13: =UPPER(B13)&" "&K13 -> PREPOZNATO 250 | K13: ='Prodajni lijevak za kampanju'!C4 -> 250 | L13: =$C13+L$11 -> 2.45 | M13: =$C$7+$M$11 -> 175.9545 | O13: ="NEOSTVARENO " & P13 -> NEOSTVARENO 20 | P13: ='Prodajni lijevak za kampanju'!D4 -> 20 | Q13: =$C13+Q$11 -> 2.45 | R13: =$C$7+$R$11 -> 147.864 | T13: ="NEKVALIFICIRANO "&U13 -> NEKVALIFICIRANO 9 | U13: ='Prodajni lijevak za kampanju'!E4 -> 9 | V13: =$C13+V$11 -> 2.45 | W13: =$C$7+$W$11 -> 135.969 | Y13: =Y12+1 -> 3 | AB13: PREPOZNATO | AD13: =-K13/2+$AD$9 -> 58 | AE13: =K13/2+$AD$9 -> 308 | AG13: =AE13 -> 308 | AH13: =AE13 -> 308 | AI13: 0 | AJ13: 0
B14: Uspostavljen kontakt | C14: 3 | E14: =F14 -> 60% | F14: ='Prodajni lijevak za kampanju'!C5/'Prodajni lijevak za kampanju'!$C$4 -> 60% | G14: =$C14+G$11 -> 3.45 | H14: =$C$7+$H$11 -> 190.0455 | J14: =UPPER(B14)&" "&K14 -> USPOSTAVLJEN KONTAKT 150 | K14: ='Prodajni lijevak za kampanju'!C5 -> 150 | L14: =$C14+L$11 -> 3.45 | M14: =$C$7+$M$11 -> 175.9545 | O14: ="NEOSTVARENO " & P14 -> NEOSTVARENO 15 | P14: ='Prodajni lijevak za kampanju'!D5 -> 15 | Q14: =$C14+Q$11 -> 3.45 | R14: =$C$7+$R$11 -> 147.864 | Y14: =Y13+1 -> 4 | AB14: USPOSTAVLJEN KONTAKT | AD14: =-K14/2+$AD$9 -> 108 | AE14: =K14/2+$AD$9 -> 258 | AH14: =AE14 -> 258 | AI14: =AE14 -> 258 | AJ14: 0
B15: Razgovor | C15: 4 | E15: =F15 -> 40% | F15: ='Prodajni lijevak za kampanju'!C6/'Prodajni lijevak za kampanju'!$C$4 -> 40% | G15: =$C15+G$11 -> 4.45 | H15: =$C$7+$H$11 -> 190.0455 | J15: =UPPER(B15)&" "&K15 -> RAZGOVOR 100 | K15: ='Prodajni lijevak za kampanju'!C6 -> 100 | L15: =$C15+L$11 -> 4.45 | M15: =$C$7+$M$11 -> 175.9545 | O15: ="NEOSTVARENO " & P15 -> NEOSTVARENO 35 | P15: ='Prodajni lijevak za kampanju'!D6 -> 35 | Q15: =$C15+Q$11 -> 4.45 | R15: =$C$7+$R$11 -> 147.864 | Y15: =Y14+1 -> 5 | AB15: RAZGOVOR | AD15: =-K15/2+$AD$9 -> 133 | AE15: =K15/2+$AD$9 -> 233 | AI15: =AE15 -> 233 | AJ15: =AE15 -> 233
B16: Ostvareno | C16: 5 | E16: =F16 -> 6% | F16: ='Prodajni lijevak za kampanju'!C7/'Prodajni lijevak za kampanju'!$C$4 -> 6% | G16: =$C16+G$11 - 0.1 -> 5.35 | H16: =$C$7+$H$11 -> 190.0455 | J16: =UPPER(B16) -> OSTVARENO | K16: ='Prodajni lijevak za kampanju'!C7 -> 15 | L16: =$C16+L$11 -0.1 -> 5.35 | M16: =$C$7+$M$11 -> 175.9545 | Y16: =Y15+1 -> 6 | AB16: OSTVARENO | AD16: =-K16/2+$AD$9 -> 175.5 | AE16: =K16/2+$AD$9 -> 190.5 | AJ16: =AE16 -> 190.5
B17: Točka za ostvareno | C17: 6 | K17: =K16 -> 15 | L17: 6.44 | M17: =C7 -> 183
